fUST/lending_fUST_20260611
["ID","MTS","AMOUNT","RATE_DAILY","PERIOD"]
[424754057,1781127039000,-204.14651679,0.00015469,2]
[424754048,1781127039000,-318.56850494,0.00015469,2]
[424754049,1781127039000,-408.77761789,0.00015469,2]
[424754061,1781127039000,-336.72605554,0.00015469,2]
[424754051,1781127039000,-150.78463985,0.00015469,2]
[424754055,1781127039000,-399.37160494,0.00015469,2]
[424754053,1781127039000,-317.62592867,0.00015469,2]
[424754063,1781127039000,-341.31635517,0.00015469,2]
[424754067,1781127039000,-345.72401172,0.00015469,2]
[424753958,1781127039000,-202.57554448,0.00014764,2]
[424754059,1781127039000,-345.75481695,0.00015469,2]
[424754017,1781127039000,-500.0,0.0001531,2]
[424754040,1781127039000,-405.15108896,0.00015469,2]
[424754006,1781127039000,-155.77403654,0.0001477,2]
[424753968,1781127039000,-156.37912256,0.00014764,2]
[424754015,1781127039000,-268.586266,0.00015068,2]
[424753970,1781127039000,-159.28425247,0.00014764,2]
[424753974,1781127039000,-158.81296434,0.00014764,2]
[424753983,1781127039000,-170.65817758,0.00014764,2]
[424753976,1781127039000,-199.68580247,0.00014764,2]
[424753987,1781127039000,-181.49131868,0.00014764,2]
[424753966,1781127039000,-157.27493578,0.00014764,2]
[424753972,1781127039000,-204.38880895,0.00014764,2]
[424754065,1781127039000,-362.98263737,0.00015469,2]
[424753989,1781127039000,-159.87928667,0.00014764,2]
[424753981,1781127039000,-168.36302777,0.00014764,2]
[424753980,1781127039000,-239.72082617,0.00014764,2]
[424753978,1781127039000,-172.87740847,0.00014764,2]
[424753996,1781127039000,-172.73345168,0.00014764,2]
[424754004,1781127039000,-197.68886301,0.0001477,2]
[424754011,1781127039000,-307.650428,0.00014961,2]
[424754000,1781127039000,-174.15744756,0.00014764,2]
[424753998,1781127039000,-174.03429466,0.00014764,2]
[424754002,1781127039000,-153.15167243,0.0001477,2]
[424754007,1781127039000,-154.48295251,0.0001477,2]
[424754009,1781127039000,-181.73866642,0.0001477,2]
[424753993,1781127039000,-219.00212707,0.00014764,2]
[424753994,1781127039000,-202.35781922,0.00014764,2]
[424753991,1781127039000,-177.25803359,0.00014764,2]
[424754013,1781127039000,-500.0,0.00015036,2]
[424754147,1781127040000,-243.70781667,0.00015912,2]
[424754143,1781127040000,-280.78012061,0.00015912,2]
[424754145,1781127040000,-280.87167412,0.00015912,2]
[424754155,1781127040000,-161.8887429,0.00015912,2]
[424754141,1781127040000,-513.2052255,0.00015912,2]
[424754135,1781127040000,-382.66548655,0.00015912,2]
[424754137,1781127040000,-497.61916016,0.00015912,2]
[424754131,1781127040000,-186.31376658,0.00015911,2]
[424754128,1781127040000,-469.51588289,0.0001584,2]
[424754122,1781127040000,-5332.08260572,0.000156,2]
[424754151,1781127040000,-473.11240741,0.00015912,2]
[424754139,1781127040000,-479.44165233,0.00015912,2]
[424754153,1781127040000,-643.48362793,0.00015912,2]
[424754178,1781127040000,-270.31879294,0.0001594,2]
[424754159,1781127040000,-326.0997622,0.00015912,2]
[424754161,1781127040000,-233.42359972,0.0001594,2]
[424754163,1781127040000,-208.34094904,0.0001594,2]
[424754166,1781127040000,-216.12633387,0.0001594,2]
[424754165,1781127040000,-303.0012079,0.0001594,2]
[424754168,1781127040000,-465.7227386,0.0001594,2]
[424754170,1781127040000,-607.72663343,0.0001594,2]
[424754174,1781127040000,-559.9139289,0.0001594,2]
[424754176,1781127040000,-469.13736769,0.0001594,2]
[424754172,1781127040000,-459.26949927,0.0001594,2]
[424754180,1781127040000,-236.65768252,0.0001594,2]
[424754133,1781127040000,-188.60051516,0.00015912,2]
[424754157,1781127040000,-530.13971559,0.00015912,2]
[424754126,1781127040000,-1108.62258787,0.00015716,2]
[424754073,1781127040000,-162.3583144,0.00015469,2]
[424754129,1781127040000,-500.0,0.00015858,2]
[424754185,1781127040000,-476.43889301,0.0001594,2]
[424754069,1781127040000,-238.13630766,0.00015469,2]
[424754071,1781127040000,-319.75857335,0.00015469,2]
[424754084,1781127040000,-188.84183295,0.00015469,2]
[424754075,1781127040000,-354.51606717,0.00015469,2]
[424754086,1781127040000,-236.61542225,0.00015469,2]
[424754082,1781127040000,-308.19018803,0.00015469,2]
[424754076,1781127040000,-314.54987155,0.00015469,2]
[424754078,1781127040000,-187.50621839,0.00015469,2]
[424754080,1781127040000,-313.85342491,0.00015469,2]
[424754088,1781127040000,-438.00425414,0.00015469,2]
[424754092,1781127040000,-183.95825477,0.00015469,2]
[424754090,1781127040000,-247.31987148,0.00015469,2]
[424754124,1781127040000,-5332.08260572,0.000156,2]
[424754093,1781127040000,-404.71563844,0.00015469,2]
[424754108,1781127040000,-311.54807309,0.00015476,2]
[424754106,1781127040000,-395.37772602,0.00015476,2]
[424754099,1781127040000,-348.31489513,0.00015469,2]
[424754097,1781127040000,-190.47733826,0.00015469,2]
[424754100,1781127040000,-348.06858932,0.00015469,2]
[424754104,1781127040000,-306.30334485,0.00015476,2]
[424754102,1781127040000,-320.16127612,0.00015475,2]
[424754112,1781127040000,-308.96590501,0.00015476,2]
[424754110,1781127040000,-228.60951726,0.00015476,2]
[424754115,1781127040000,-155.96086753,0.00015476,2]
[424754113,1781127040000,-363.47733284,0.00015476,2]
[424754117,1781127040000,-500.0,0.00015584,2]
[424754119,1781127040000,-5332.08260573,0.000156,2]
[424754095,1781127040000,-345.46690336,0.00015469,2]
[424754183,1781127040000,-613.16642684,0.0001594,2]
[424754182,1781127040000,-477.85275741,0.0001594,2]
[424754200,1781127040000,-151.9659633,0.0001594,2]
[424754239,1781127040000,-593.06658903,0.00015947,2]
[424754241,1781127040000,-457.21903451,0.00015947,2]
[424754242,1781127040000,-463.44885752,0.00015947,2]
[424754240,1781127040000,-467.32210963,0.00015947,2]
[424754244,1781127040000,-222.40925288,0.00015947,2]
[424754243,1781127040000,-545.21599926,0.00015947,2]
[424754246,1781127040000,-311.92173505,0.00015947,2]
[424754249,1781127040000,-377.20103032,0.00016225,2]
[424754245,1781127040000,-234.97800404,0.00015947,2]
[424754247,1781127040000,-176.60128624,0.00015947,2]
[424754248,1781127040000,-162.27225706,0.00016225,2]
[424754250,1781127040000,-573.99822982,0.00016225,2]
[424754255,1781127040000,-295.62991286,0.00016225,2]
[424754257,1781127040000,-160.28257977,0.00016225,2]
[424754259,1781127040000,-351.46970912,0.00016225,2]
[424754261,1781127040000,-561.56024121,0.00016225,2]
[424754264,1781127040000,-857.97817057,0.00016225,2]
[424754263,1781127040000,-487.41563333,0.00016225,2]
[424754267,1781127040000,-335.0982326,0.00016225,2]
[424754265,1781127040000,-706.85295413,0.00016225,2]
[424754266,1781127040000,-410.72428935,0.00016225,2]
[424754262,1781127040000,-561.74334825,0.00016225,2]
[424754269,1781127040000,-489.1496433,0.00016225,2]
[424754270,1781127040000,-466.84719943,0.00016253,2]
[424754268,1781127040000,-369.69225095,0.00016225,2]
[424754271,1781127040000,-454.50181186,0.00016253,2]
[424754187,1781127040000,-301.56927971,0.0001594,2]
[424754236,1781127040000,-462.28528205,0.0001594,2]
[424754237,1781127040000,-271.17077439,0.00015947,2]
[424754253,1781127040000,-684.273634,0.00016225,2]
[424754235,1781127040000,-377.6836659,0.0001594,2]
[424754189,1781127040000,-599.0574074,0.0001594,2]
[424754238,1781127040000,-459.45501728,0.00015947,2]
[424754202,1781127040000,-511.97453275,0.0001594,2]
[424754194,1781127040000,-518.63222542,0.0001594,2]
[424754191,1781127040000,-408.29303358,0.0001594,2]
[424754198,1781127040000,-505.08908331,0.0001594,2]
[424754193,1781127040000,-177.76853558,0.0001594,2]
[424754196,1781127040000,-719.1624785,0.0001594,2]
[424754199,1781127040000,-297.9405843,0.0001594,2]
[424754206,1781127040000,-185.70967215,0.0001594,2]
[424754210,1781127040000,-479.63786002,0.0001594,2]
[424754208,1781127040000,-476.27261531,0.0001594,2]
[424754214,1781127040000,-83.80140528,0.0001594,2]
[424754212,1781127040000,-240.91522351,0.0001594,2]
[424754204,1781127040000,-544.47395605,0.0001594,2]
[424754229,1781127040000,-607.07345766,0.0001594,2]
[424754220,1781127040000,-470.78013736,0.0001594,2]
[424754218,1781127040000,-375.01243677,0.0001594,2]
[424754221,1781127040000,-473.23084451,0.0001594,2]
[424754223,1781127040000,-657.00638121,0.0001594,2]
[424754225,1781127040000,-494.63974296,0.0001594,2]
[424754228,1781127040000,-367.91650954,0.0001594,2]
[424754227,1781127040000,-196.73957457,0.0001594,2]
[424754230,1781127040000,-522.10288398,0.0001594,2]
[424754231,1781127040000,-518.20035504,0.0001594,2]
[424754232,1781127040000,-380.95467651,0.0001594,2]
[424754216,1781127040000,-531.77410076,0.0001594,2]
[424754233,1781127040000,-522.47234269,0.0001594,2]
[424754234,1781127040000,-471.82480733,0.0001594,2]
[424754318,1781127041000,-625.51649025,0.00016253,2]
[424754320,1781127041000,-473.31536505,0.00016253,2]
[424754305,1781127041000,-334.61019429,0.00016253,2]
[424754321,1781127041000,-709.84626676,0.00016253,2]
[424754317,1781127041000,-562.51865516,0.00016253,2]
[424754315,1781127041000,-714.40892297,0.00016253,2]
[424754303,1781127041000,-323.7774858,0.00016253,2]
[424754314,1781127041000,-371.41934429,0.00016253,2]
[424754312,1781127041000,-682.63271033,0.00016253,2]
[424754311,1781127041000,-725.96527474,0.00016253,2]
[424754310,1781127041000,-303.9319266,0.00016253,2]
[424754316,1781127041000,-709.03213435,0.00016253,2]
[424754313,1781127041000,-223.91397562,0.00016253,2]
[424754319,1781127041000,-540.63758589,0.00016253,2]
[424754333,1781127041000,-696.62979026,0.00016253,2]
[424754323,1781127041000,-876.00850828,0.00016253,2]
[424754324,1781127041000,-741.95961444,0.00016253,2]
[424754326,1781127041000,-551.8747643,0.00016253,2]
[424754325,1781127041000,-393.47914913,0.00016253,2]
[424754327,1781127041000,-809.43127688,0.00016253,2]
[424754328,1781127041000,-158.84648094,0.00016253,2]
[424754329,1781127041000,-167.89952851,0.00016253,2]
[424754332,1781127041000,-571.43201477,0.00016253,2]
[424754331,1781127041000,-696.13717864,0.00016253,2]
[424754330,1781127041000,-690.93380672,0.00016253,2]
[424754337,1781127041000,-566.52549885,0.00016253,2]
[424754334,1781127041000,-629.09974311,0.00016253,2]
[424754336,1781127041000,-682.81062425,0.00016253,2]
[424754307,1781127041000,-595.88116859,0.00016253,2]
[424754322,1781127041000,-187.74509805,0.00016253,2]
[424754304,1781127041000,-320.56515955,0.00016253,2]
[424754273,1781127041000,-620.96365147,0.00016253,2]
[424754309,1781127041000,-383.40835739,0.00016253,2]
[424754272,1781127041000,-432.25266775,0.00016253,2]
[424754274,1781127041000,-810.30217791,0.00016253,2]
[424754275,1781127041000,-627.70684982,0.00016253,2]
[424754276,1781127041000,-612.35933237,0.00016253,2]
[424754282,1781127041000,-312.6815555,0.00016253,2]
[424754281,1781127041000,-746.5519052,0.00016253,2]
[424754280,1781127041000,-355.8406003,0.00016253,2]
[424754279,1781127041000,-316.05924422,0.00016253,2]
[424754277,1781127041000,-324.54451412,0.00016253,2]
[424754278,1781127041000,-308.21294605,0.00016253,2]
[424754283,1781127041000,-189.32725264,0.00016253,2]
[424754285,1781127041000,-228.63604299,0.00016253,2]
[424754284,1781127041000,-565.80154548,0.00016253,2]
[424754286,1781127041000,-309.0091892,0.00016253,2]
[424754308,1781127041000,-691.44802344,0.00016253,2]
[424754287,1781127041000,-199.85070312,0.00016253,2]
[424754296,1781127041000,-305.32408739,0.00016253,2]
[424754297,1781127041000,-355.53707116,0.00016253,2]
[424754291,1781127041000,-635.25185735,0.00016253,2]
[424754293,1781127041000,-798.74320987,0.00016253,2]
[424754290,1781127041000,-817.55523578,0.00016253,2]
[424754294,1781127041000,-612.43955037,0.00016253,2]
[424754292,1781127041000,-452.35391956,0.00016253,2]
[424754295,1781127041000,-158.42143612,0.00016253,2]
[424754298,1781127041000,-691.50963389,0.00016253,2]
[424754299,1781127041000,-591.25982572,0.00016253,2]
[424754300,1781127041000,-630.81654322,0.00016253,2]
[424754301,1781127041000,-283.51200572,0.00016253,2]
[424754302,1781127041000,-354.6285651,0.00016253,2]
[424754306,1781127041000,-958.88330466,0.00016253,2]
[424754288,1781127041000,-637.13700988,0.00016253,2]
[424754338,1781127041000,-160.27550511,0.00016261,2]
[424754335,1781127041000,-616.38037607,0.00016253,2]
[424754341,1781127041000,-790.75545204,0.00016261,2]
[424754376,1781127041000,-1060.27943119,0.00017008,2]
[424754375,1781127041000,-469.51588288,0.00016657,2]
[424754379,1781127041000,-1438.324957,0.00017038,2]
[424754378,1781127041000,-1037.26445084,0.00017038,2]
[424754380,1781127041000,-1036.40071009,0.00017038,2]
[424754381,1781127041000,-221.729,0.00017147,2]
[424754387,1781127041000,-300.0,0.00017163,2]
[424754384,1781127041000,-300.0,0.00017163,2]
[424754385,1781127041000,-300.0,0.00017163,2]
[424754386,1781127041000,-300.0,0.00017163,2]
[424754382,1781127041000,-300.0,0.00017163,2]
[424754394,1781127041000,-300.0,0.00017163,2]
[424754383,1781127041000,-300.0,0.00017163,2]
[424754388,1781127041000,-300.0,0.00017163,2]
[424754377,1781127041000,-1119.8278578,0.00017038,2]
[424754395,1781127041000,-300.0,0.00017163,2]
[424754391,1781127041000,-300.0,0.00017163,2]
[424754389,1781127041000,-300.0,0.00017163,2]
[424754390,1781127041000,-300.0,0.00017163,2]
[424754392,1781127041000,-300.0,0.00017163,2]
[424754401,1781127041000,-1306.4658341,0.00017743,2]
[424754405,1781127041000,-151.0,0.000179,2]
[424754400,1781127041000,-1236.99266972,0.00017713,2]
[424754398,1781127041000,-593.25829312,0.00017258,2]
[424754402,1781127041000,-1678.04578316,0.00017743,2]
[424754399,1781127041000,-469.51588288,0.00017475,2]
[424754404,1781127041000,-151.0,0.000179,2]
[424754396,1781127041000,-300.0,0.00017163,2]
[424754397,1781127041000,-23903.7575003,0.00017233,2]
[424754340,1781127041000,-612.60668971,0.00016261,2]
[424754393,1781127041000,-300.0,0.00017163,2]
[424754373,1781127041000,-988.44431505,0.00016574,2]
[424754403,1781127041000,-151.0,0.000179,2]
[424754374,1781127041000,-908.6933321,0.00016574,2]
[424754372,1781127041000,-853.51328031,0.00016567,2]
[424754342,1781127041000,-623.09614617,0.00016261,2]
[424754343,1781127041000,-204.70264558,0.00016261,2]
[424754345,1781127041000,-231.46927111,0.00016261,2]
[424754347,1781127041000,-617.93181002,0.00016261,2]
[424754346,1781127041000,-162.3566769,0.00016261,2]
[424754344,1781127041000,-685.82855176,0.00016261,2]
[424754350,1781127041000,-469.95600808,0.00016261,2]
[424754348,1781127041000,-726.95466568,0.00016261,2]
[424754349,1781127041000,-444.81850575,0.00016261,2]
[424754351,1781127041000,-467.88260258,0.00016261,2]
[424754352,1781127041000,-162.38255074,0.00016261,2]
[424754354,1781127041000,-152.0,0.00016335,7]
[424754355,1781127041000,-151.78607009,0.00016438,2]
[424754353,1781127041000,-152.0,0.00016335,7]
[424754339,1781127041000,-542.34154877,0.00016261,2]
[424754358,1781127041000,-1012.87772239,0.00016567,2]
[424754371,1781127041000,-855.3420425,0.00016567,2]
[424754369,1781127041000,-863.66725841,0.00016567,2]
[424754370,1781127041000,-870.1714733,0.00016567,2]
[424754368,1781127041000,-1011.78909609,0.00016567,2]
[424754356,1781127041000,-883.56619266,0.00016538,2]
[424754365,1781127041000,-1198.60413083,0.00016567,2]
[424754366,1781127041000,-907.45659342,0.00016567,2]
[424754367,1781127041000,-784.63356227,0.00016567,2]
[424754362,1781127041000,-794.06482169,0.00016567,2]
[424754360,1781127041000,-933.1898815,0.00016567,2]
[424754361,1781127041000,-1021.94404473,0.00016567,2]
[424754363,1781127041000,-864.38704236,0.00016567,2]
[424754359,1781127041000,-765.44916546,0.00016567,2]
[424754357,1781127041000,-776.20456434,0.00016567,2]
[424754364,1781127041000,-1018.84907755,0.00016567,2]
[424754449,1781127042000,-171.736646,0.00019012,2]
[424754447,1781127042000,-198.157669,0.00019012,2]
[424754450,1781127042000,-159.52582928,0.00019036,2]
[424754451,1781127042000,-201.9165228,0.00019036,2]
[424754448,1781127042000,-257.985901,0.00019012,2]
[424754442,1781127042000,-151.0,0.00019,2]
[424754445,1781127042000,-151.0,0.00019,2]
[424754444,1781127042000,-151.0,0.00019,2]
[424754446,1781127042000,-159.96,0.00019007,2]
[424754440,1781127042000,-331.48,0.00018904,2]
[424754441,1781127042000,-159.41,0.00018931,2]
[424754438,1781127042000,-158.81,0.00018866,2]
[424754443,1781127042000,-151.0,0.00019,2]
[424754453,1781127042000,-160.51,0.00019066,2]
[424754458,1781127042000,-1271.63,0.00019072,2]
[424754455,1781127042000,-500.0,0.00019072,2]
[424754452,1781127042000,-161.22,0.00019066,2]
[424754457,1781127042000,-500.0,0.00019072,2]
[424754459,1781127042000,-1271.63,0.00019072,2]
[424754456,1781127042000,-500.0,0.00019072,2]
[424754460,1781127042000,-1271.63,0.00019072,2]
[424754462,1781127042000,-928.03,0.00019072,2]
[424754461,1781127042000,-1271.63,0.00019072,2]
[424754465,1781127042000,-928.03,0.00019072,2]
[424754463,1781127042000,-928.03,0.00019072,2]
[424754464,1781127042000,-928.03,0.00019072,2]
[424754467,1781127042000,-1111.53,0.00019072,2]
[424754468,1781127042000,-1111.53,0.00019072,2]
[424754434,1781127042000,-158.28,0.00018775,2]
[424754454,1781127042000,-500.0,0.00019072,2]
[424754437,1781127042000,-158.48,0.00018815,2]
[424754420,1781127042000,-701.236944,0.000179,2]
[424754436,1781127042000,-1917.76660933,0.00018802,2]
[424754407,1781127042000,-238.95872,0.000179,2]
[424754406,1781127042000,-238.95872,0.000179,2]
[424754408,1781127042000,-238.95872,0.000179,2]
[424754409,1781127042000,-238.95872,0.000179,2]
[424754411,1781127042000,-151.0,0.000179,2]
[424754415,1781127042000,-207.340324,0.000179,2]
[424754414,1781127042000,-207.340324,0.000179,2]
[424754412,1781127042000,-151.0,0.000179,2]
[424754410,1781127042000,-151.0,0.000179,2]
[424754413,1781127042000,-207.340324,0.000179,2]
[424754416,1781127042000,-207.340324,0.000179,2]
[424754466,1781127042000,-1111.53,0.00019072,2]
[424754417,1781127042000,-701.236944,0.000179,2]
[424754419,1781127042000,-701.236944,0.000179,2]
[424754418,1781127042000,-701.236944,0.000179,2]
[424754421,1781127042000,-14023.05937313,0.00018,2]
[424754422,1781127042000,-324.761438,0.00018058,2]
[424754423,1781127042000,-500.0,0.00018058,2]
[424754425,1781127042000,-5824.65067584,0.00018269,2]
[424754424,1781127042000,-250.0,0.000181,2]
[424754427,1781127042000,-600.0,0.00018359,2]
[424754428,1781127042000,-268.586266,0.00018493,2]
[424754429,1781127042000,-270.38185673,0.00018518,2]
[424754426,1781127042000,-469.51588288,0.00018292,2]
[424754431,1781127042000,-331.48,0.0001863,2]
[424754430,1781127042000,-500.0,0.00018606,2]
[424754432,1781127042000,-158.16,0.00018756,2]
[424754433,1781127042000,-1413.70590825,0.0001877,2]
[424754435,1781127042000,-152.0,0.00018792,2]
[424754439,1781127042000,-151.0,0.000189,2]
[424754470,1781127042000,-151.0,0.00019072,2]
[424754522,1781127042000,-300.0,0.000192,3]
[424754471,1781127042000,-151.0,0.00019072,2]
[424754505,1781127042000,-469.51588288,0.00019109,2]
[424754508,1781127042000,-151.0,0.0001911,2]
[424754502,1781127042000,-151.0,0.000191,2]
[424754510,1781127042000,-151.0,0.0001911,2]
[424754509,1781127042000,-151.0,0.0001911,2]
[424754504,1781127042000,-151.0,0.000191,2]
[424754512,1781127042000,-151.0,0.0001911,2]
[424754514,1781127042000,-151.0,0.0001911,2]
[424754513,1781127042000,-151.0,0.0001911,2]
[424754511,1781127042000,-151.0,0.0001911,2]
[424754516,1781127042000,-500.0,0.00019154,2]
[424754515,1781127042000,-151.84870158,0.0001911,2]
[424754518,1781127042000,-768.91038747,0.0001917,2]
[424754519,1781127042000,-417.15472785,0.0001917,2]
[424754517,1781127042000,-160.0,0.0001917,2]
[424754523,1781127042000,-346.868127,0.000192,2]
[424754521,1781127042000,-331.48,0.00019178,2]
[424754520,1781127042000,-151.0,0.00019178,2]
[424754526,1781127042000,-151.0,0.000192,2]
[424754525,1781127042000,-10553.38832801,0.000192,2]
[424754528,1781127042000,-151.0,0.000192,2]
[424754527,1781127042000,-151.0,0.000192,2]
[424754530,1781127042000,-151.0,0.000192,2]
[424754532,1781127042000,-151.0,0.000192,2]
[424754529,1781127042000,-190.34962631,0.000192,2]
[424754531,1781127042000,-151.0,0.000192,2]
[424754534,1781127042000,-500.0,0.00019208,2]
[424754533,1781127042000,-151.0,0.000192,2]
[424754469,1781127042000,-1111.53,0.00019072,2]
[424754506,1781127042000,-181.65492192,0.0001911,2]
[424754507,1781127042000,-151.0,0.0001911,2]
[424754524,1781127042000,-168.94243976,0.000192,2]
[424754500,1781127042000,-155.52752839,0.000191,2]
[424754473,1781127042000,-500.0,0.00019072,2]
[424754474,1781127042000,-500.0,0.00019072,2]
[424754475,1781127042000,-500.0,0.00019072,2]
[424754478,1781127042000,-1158.9683428,0.00019073,2]
[424754476,1781127042000,-297.29691602,0.00019072,2]
[424754477,1781127042000,-68513.5836711,0.00019073,2]
[424754479,1781127042000,-151.0,0.00019073,2]
[424754480,1781127042000,-151.0,0.00019073,2]
[424754481,1781127042000,-151.0,0.00019073,2]
[424754482,1781127042000,-238.95872,0.00019073,2]
[424754472,1781127042000,-151.0,0.00019072,2]
[424754483,1781127042000,-238.95872,0.00019073,2]
[424754484,1781127042000,-238.95872,0.00019073,2]
[424754486,1781127042000,-151.0,0.00019073,2]
[424754503,1781127042000,-151.0,0.000191,2]
[424754487,1781127042000,-151.0,0.00019073,2]
[424754499,1781127042000,-154.35445461,0.000191,2]
[424754501,1781127042000,-155.52752839,0.000191,2]
[424754497,1781127042000,-151.0,0.00019073,2]
[424754498,1781127042000,-154.35445461,0.000191,2]
[424754485,1781127042000,-238.95872,0.00019073,2]
[424754493,1781127042000,-701.236944,0.00019073,2]
[424754496,1781127042000,-701.236944,0.00019073,2]
[424754492,1781127042000,-207.340324,0.00019073,2]
[424754495,1781127042000,-701.236944,0.00019073,2]
[424754490,1781127042000,-207.340324,0.00019073,2]
[424754491,1781127042000,-207.340324,0.00019073,2]
[424754494,1781127042000,-701.236944,0.00019073,2]
[424754489,1781127042000,-207.340324,0.00019073,2]
[424754488,1781127042000,-151.0,0.00019073,2]
[424754590,1781127043000,-928.03,0.00019209,2]
[424754591,1781127043000,-928.03,0.00019209,2]
[424754589,1781127043000,-928.03,0.00019209,2]
[424754579,1781127043000,-928.03,0.00019209,2]
[424754581,1781127043000,-928.03,0.00019209,2]
[424754583,1781127043000,-928.03,0.00019209,2]
[424754575,1781127043000,-928.03,0.00019209,2]
[424754573,1781127043000,-928.03,0.00019209,2]
[424754588,1781127043000,-928.03,0.00019209,2]
[424754585,1781127043000,-928.03,0.00019209,2]
[424754587,1781127043000,-928.03,0.00019209,2]
[424754593,1781127043000,-928.03,0.00019209,2]
[424754577,1781127043000,-928.03,0.00019209,2]
[424754596,1781127043000,-1111.53,0.00019209,2]
[424754598,1781127043000,-1111.53,0.00019209,2]
[424754597,1781127043000,-1111.53,0.00019209,2]
[424754592,1781127043000,-928.03,0.00019209,2]
[424754599,1781127043000,-1111.53,0.00019209,2]
[424754601,1781127043000,-1111.53,0.00019209,2]
[424754602,1781127043000,-1111.53,0.00019209,2]
[424754600,1781127043000,-1111.53,0.00019209,2]
[424754604,1781127043000,-1111.53,0.00019209,2]
[424754605,1781127043000,-1111.53,0.00019209,2]
[424754607,1781127043000,-1111.53,0.00019209,2]
[424754603,1781127043000,-1111.53,0.00019209,2]
[424754608,1781127043000,-1111.53,0.00019209,2]
[424754606,1781127043000,-1111.53,0.00019209,2]
[424754571,1781127043000,-928.03,0.00019209,2]
[424754594,1781127043000,-928.13066765,0.00019209,2]
[424754572,1781127043000,-928.03,0.00019209,2]
[424754552,1781127043000,-1271.63,0.00019209,2]
[424754569,1781127043000,-928.03,0.00019209,2]
[424754537,1781127043000,-928.03,0.00019208,2]
[424754536,1781127043000,-1271.63,0.00019208,2]
[424754539,1781127043000,-500.0,0.00019209,2]
[424754541,1781127043000,-500.0,0.00019209,2]
[424754538,1781127043000,-1111.53,0.00019208,2]
[424754540,1781127043000,-500.0,0.00019209,2]
[424754543,1781127043000,-500.0,0.00019209,2]
[424754545,1781127043000,-426.20071211,0.00019209,2]
[424754547,1781127043000,-1271.63,0.00019209,2]
[424754542,1781127043000,-500.0,0.00019209,2]
[424754549,1781127043000,-1271.63,0.00019209,2]
[424754550,1781127043000,-1271.63,0.00019209,2]
[424754548,1781127043000,-1271.63,0.00019209,2]
[424754546,1781127043000,-1271.63,0.00019209,2]
[424754544,1781127043000,-500.0,0.00019209,2]
[424754609,1781127043000,-1111.53,0.00019209,2]
[424754554,1781127043000,-1271.63,0.00019209,2]
[424754556,1781127043000,-1271.63,0.00019209,2]
[424754557,1781127043000,-1271.63,0.00019209,2]
[424754559,1781127043000,-1271.63,0.00019209,2]
[424754561,1781127043000,-1271.63,0.00019209,2]
[424754560,1781127043000,-1271.63,0.00019209,2]
[424754562,1781127043000,-1271.63,0.00019209,2]
[424754565,1781127043000,-1271.63,0.00019209,2]
[424754563,1781127043000,-1271.63,0.00019209,2]
[424754568,1781127043000,-1271.79948988,0.00019209,2]
[424754564,1781127043000,-1271.63,0.00019209,2]
[424754567,1781127043000,-1271.63,0.00019209,2]
[424754566,1781127043000,-1271.63,0.00019209,2]
[424754570,1781127043000,-928.03,0.00019209,2]
[424754610,1781127043000,-1111.53,0.00019209,2]
[424754595,1781127043000,-1111.53,0.00019209,2]
[424754611,1781127043000,-1111.53,0.00019209,2]
[424754646,1781127043000,-151.0,0.000196,2]
[424754648,1781127043000,-331.48,0.00019726,2]
[424754643,1781127043000,-151.0,0.000196,2]
[424754650,1781127043000,-10553.38832801,0.000198,2]
[424754652,1781127043000,-370.1240024,0.00019872,2]
[424754654,1781127043000,-232.187311,0.00019982,2]
[424754651,1781127043000,-968.02625626,0.00019818,2]
[424754655,1781127043000,-300.0,0.0002,4]
[424754653,1781127043000,-10553.38832801,0.000199,2]
[424754656,1781127043000,-331.48,0.0002,2]
[424754661,1781127043000,-180.578275,0.0002,2]